Cogmind - Beta 11.1 @@@ ROGUE MODE // 2022.05.30 @ 23:40:46 Player: Ruxi Result: Destroyed by DAS Turret with DAS Cannon Performance ------------- Evolutions (0) 0 Regions Visited (3) 600 Robots Destroyed (21) 105 Value Destroyed (430) 430 Prototype IDs (0) 0 Alien Tech Used (0) 0 Bonus (0) 0 TOTAL SCORE: 1135 Bonus ------- None Cogmind --------- Core Integrity 0/250 Matter 233/300 Energy 274/275 System Corruption 5% Temperature Cool (0) Movement Treading (240) Ox1 Location -10/Exiles Parts ------- > --- POWER (1) -------- Deuterium Engine > --- PROPULSION (2) --- Light Treads > --- UTILITY (2) ------ Large Storage Unit Improved Light Armor Plating > --- WEAPON (2) ------- Heavy Assault Rifle Grenade Launcher > --- INVENTORY (15) --- Light Ion Engine Improved Targeting Computer Core Shielding Hardened Light Armor Plating Shock Absorption System Long-range Tractor Beam Assault Rifle Assault Rifle Assault Rifle High-powered Shotgun Light Cannon Light Cannon Datajack Peak State ------------ > --- POWER ------------ Deuterium Engine > --- PROPULSION ------- Armored Treads Advanced Treads > --- UTILITY ---------- Large Storage Unit Improved Trap Extractor > --- WEAPON ----------- EM Pulse Gun EM Pulse Gun > --- INVENTORY -------- Light Treads Improved Targeting Computer Core Shielding Light Armor Plating Hardened Light Armor Plating EM Pulse Gun Assault Rifle Assault Rifle Assault Rifle Heavy Assault Rifle High-powered Shotgun Light Cannon Light Cannon Grenade Launcher Grenade Launcher [Rating: 18] Favorites ----------- Power Deuterium Engine Engine Deuterium Engine Propulsion Armored Treads Treads Armored Treads Leg Aluminum Leg Utility Large Storage Unit Device Improved Trap Extractor Storage Large Storage Unit Protection Core Shielding Weapon EM Pulse Gun Energy Gun EM Pulse Gun Ballistic Gun Assault Rifle Launcher Grenade Launcher Build | -11 -10 -10 -10 ------- Run | Scr Mat Min Exi Slots Evolved . | . . . . Power . | . . . . Propulsion . | . . . . Utility . | . . . . Weapon . | . . . . Parts Attached 35 | . 21 12 2 Power 5 | . 4 1 . Engine 5 | . 4 1 . Core . | . . . . Reactor . | . . . . Propulsion 10 | . 6 3 1 Treads 7 | . 3 3 1 Leg 3 | . 3 . . Wheel . | . . . . Hover . | . . . . Flight . | . . . . Utility 9 | . 4 5 . Device 1 | . . 1 . Storage 3 | . 2 1 . Processor . | . . . . Hackware . | . . . . Protection 5 | . 2 3 . Artifact . | . . . . Weapon 11 | . 7 3 1 Energy Gun 6 | . 5 1 . Energy Cannon . | . . . . Ballistic Gun 3 | . 2 . 1 Ballistic Cannon . | . . . . Launcher 2 | . . 2 . Special Weapon . | . . . . Impact Weapon . | . . . . Slashing Weapon . | . . . . Piercing Weapon . | . . . . Special Melee Weapon . | . . . . Unidentified Prototypes . | . . . . Parts Lost 4 | . 1 1 2 Power 1 | . 1 . . Propulsion 1 | . . . 1 Utility . | . . . . Weapon 2 | . . 1 1 Highest Loss Streak 2 | . 1 1 2 To Critical Strikes . | . . . . Average Slot Usage (%) 99 | . 97 99 100 Engine 13 | . 13 14 14 Treads 26 | . 20 28 28 Leg 1 | . 7 . . Storage 14 | . 14 14 14 Protection 13 | . 12 13 14 Energy Gun 22 | . 10 27 . Ballistic Gun 3 | . 17 . . Naked Turns . | . . . . Heaviest Build 38 | 14 34 38 38 Greatest Support 42 | 20 40 42 42 Greatest Overweight (x) 1 | . 1 . 1 Average Overweight (x) . | . . . . Largest Inventory Capacity 15 | . 15 15 15 Average Capacity 14 | . 11 15 15 Most Carried 15 | . 15 15 15 Average Carried 13 | . 10 14 14 Final Capacity 15 | 8 15 15 15 Final Carried 15 | 6 15 15 13 Class Distribution -------------------- 100% | Mutant Dominant Class ---------------- Mutant | -10/Materials Mutant | -10/Mines Mutant | -10/Exiles Resources | -11 -10 -10 -10 ----------- Run | Scr Mat Min Exi Matter Collected 848 | 200 462 180 6 Remotely . | . . . . Salvage Created 903 | . 665 238 . Parts 53 | . 49 4 . Haulers Intercepted 2 | . 2 . . Recyclers Shooed 1 | . 1 . . Parts Field Recycled . | . . . . Retrieved Matter . | . . . . Parts Self-Destructed . | . . . . Prevented . | . . . . Kills | -11 -10 -10 -10 ------- Run | Scr Mat Min Exi Combat Hostiles Destroyed 21 | . 11 10 . Guns 20 | . 10 10 . AOE 1 | . 1 . . Classes Destroyed 9 | . 7 2 . Worker 2 | . 1 1 . Builder 1 | . 1 . . Tunneler 1 | . . 1 . Hauler 2 | . 2 . . Operator 1 | . 1 . . Watcher 3 | . 3 . . Swarmer 3 | . 3 . . Grunt 8 | . 8 . . Assembled 10 | . . 10 . Best Kill Streak 4 | . 4 1 . Combat Bots Only 3 | . 3 1 . Max Kills in Single Turn 1 | . 1 1 . Gunslinging . | . . . . Exploded 1 | . 1 . . Melee . | . . . . Uniques/NPCs Destroyed . | . . . . Combat | -11 -10 -10 -10 -------- Run | Scr Mat Min Exi Damage Taken 1624 | . 707 295 622 Core 259 | . 72 23 164 Absorbed by Shields . | . . . . Redirected to Shielding 4 | . . 4 . Regen/Repaired (Parts) 120 | . 120 . . Core Remaining (%) 100 | 100 . . . Volleys Fired 81 | . 54 24 3 Largest 2 | . 2 2 2 Hottest 80 | . 80 80 60 Shots Fired 164 | . 108 49 7 Gun 158 | . 108 49 1 Cannon . | . . . . Launcher 6 | . . . 6 Special . | . . . . Kinetic 85 | . 84 . 1 Thermal . | . . . . Explosive 6 | . . . 6 Electromagnetic 73 | . 24 49 . Robot Hit Streak 10 | . 7 10 1 Robot Miss Streak 5 | . 5 2 2 Penetration Max . | . . . . Secondary Targets 2 | . 2 . . Max Gunslinging Chain 1 | . 1 . . Shots Hit Robots 89 | . 60 27 2 Core Hits 45 | . 27 16 2 Critical Kills . | . . . . Critical Parts Destroyed . | . . . . Critical Strikes 1 | . 1 . . Corrupt 1 | . 1 . . Melee Attacks . | . . . . Impact . | . . . . Slashing . | . . . . Piercing . | . . . . Sneak Attacks . | . . . . Combat Hostiles . | . . . . Follow-up Attacks . | . . . . Damage Inflicted 1332 | . 845 307 180 Guns 1121 | . 814 307 . Cannons . | . . . . Explosions 211 | . 31 . 180 Melee . | . . . . Ramming . | . . . . Kinetic 611 | . 611 . . Thermal 31 | . 31 . . Explosive 180 | . . . 180 Electromagnetic 510 | . 203 307 . Impact . | . . . . Slashing . | . . . . Piercing . | . . . . Highest Corruption 5 | . 1 1 5 Average Corruption 1 | . 1 1 1 Corruption Purged . | . . . . Corruption Blocked . | . . . . Effects 46 | . 4 39 3 Message Errors 9 | . 1 7 1 Matter Fused 9 | . . 9 . Heat Flow Errors 3 | . . 2 1 Energy Discharges 8 | . 1 7 . Data Loss (minor) 8 | . 1 7 . Data Loss (major) 3 | . . 3 . Misfires 2 | . . 1 1 Alerts 4 | . 1 3 . Overload Shots . | . . . . Overflow Damage . | . . . . Projectiles . | . . . . Explosions . | . . . . Melee . | . . . . Knockbacks . | . . . . Impact . | . . . . Kinetic . | . . . . Secondary . | . . . . Self-Inflicted Damage 46 | . 6 . 40 Shots 2 | . 1 . 1 Rammed . | . . . . Targets Rammed . | . . . . Kicked . | . . . . Crushed . | . . . . Highest Temperature 181 | . 171 181 159 Average Temperature 42 | . 48 36 59 Received Heat Transfer 355 | . 255 100 . Siege Activations . | . . . . Robots Corrupted . | . . . . Combat Hostiles . | . . . . Parts Fried . | . . . . Impact Corruptions . | . . . . Robots Melted . | . . . . Combat Hostiles . | . . . . Parts Melted . | . . . . Heat Transferred 50 | . 50 . . Parts Sabotaged . | . . . . Parts Stolen . | . . . . Parts Stripped . | . . . . Power Chain Reactions 1 | . 1 . . Missiles Intercepted . | . . . . Alert | -11 -10 -10 -10 ------- Run | Scr Mat Min Exi Peak Influence 156 | . 156 15 . Initial . | . . . . Average 9 | . 34 2 . Maximum Alert Level . | . . . . Low Security (%) 100 | . 100 100 . Level 1 . | . . . . Level 2 . | . . . . Level 3 . | . . . . Level 4 . | . . . . Level 5 . | . . . . High Security . | . . . . Max Security . | . . . . Squads Dispatched 1 | . 1 . . Investigation . | . . . . Extermination . | . . . . Reinforcement 1 | . 1 . . Assault . | . . . . Garrison . | . . . . Intercept . | . . . . Searches Triggered . | . . . . Construction Impeded . | . . . . Haulers Reinforced . | . . . . Active Scanning Responses . | . . . . Cargo Convoy Interrupts . | . . . . Stealth | -11 -10 -10 -10 --------- Run | Scr Mat Min Exi Distress Signals 2 | . 1 1 . Communications Jammed . | . . . . Distress Signals . | . . . . Times Spotted 41 | . 21 12 8 Peak Tracking Total 11 | . 3 2 11 Tactical Retreats 5 | . 1 3 1 Traps | -11 -10 -10 -10 ------- Run | Scr Mat Min Exi Traps Triggered 6 | . 5 1 . Indirectly . | . . . . Trap Hack Attempts . | . . . . Triggered . | . . . . Disarmed . | . . . . Reprogrammed . | . . . . Reused . | . . . . Traps Extracted . | . . . . Installed . | . . . . Triggered . | . . . . Machines | -11 -10 -10 -10 ---------- Run | Scr Mat Min Exi Machines Disabled 4 | . 2 . 2 Max in Single Turn 1 | . 1 . 1 Machines Sabotaged . | . . . . Garrisons Compromised . | . . . . Overloaded Fab Kills . | . . . . Hacking | -11 -10 -10 -10 --------- Run | Scr Mat Min Exi Machines Accessed 10 | . 9 1 . Terminals 7 | . 7 . . Fabricators . | . . . . Repair Stations 1 | . 1 . . Recycling Units 1 | . 1 . . Scanalyzers . | . . . . Garrison Access . | . . . . Total Hacks 31 | . 30 1 . Successful 16 | . 15 1 . Failed 15 | . 15 . . Catastrophic 1 | . 1 . . Database Lockouts . | . . . . Manual 26 | . 26 . . Terminals 24 | . 24 . . Fabricators . | . . . . Repair Stations 4 | . 4 . . Recycling Units 2 | . 2 . . Scanalyzers . | . . . . Garrison Access . | . . . . Terminal Hacks 6 | . 5 1 . Open Door 1 | . . 1 . Branch Access Points 1 | . 1 . . Terminal Index 1 | . 1 . . Unreport Threat 3 | . 3 . . Fabricator Hacks . | . . . . Repair Station Hacks 4 | . 4 . . Scan Component 2 | . 2 . . Repair 2 | . 2 . . Recycling Unit Hacks . | . . . . Scanalyzer . | . . . . Garrison Access Hacks . | . . . . Unauthorized Hacks 6 | . 6 . . Terminals 5 | . 5 . . Assimilate 1 | . 1 . . Botnet 3 | . 3 . . Operators 1 | . 1 . . Fabricators . | . . . . Repair Stations . | . . . . Recycling Units 1 | . 1 . . Recyclers 1 | . 1 . . Scanalyzers . | . . . . Garrison Access . | . . . . Data Cores Recovered . | . . . . Used . | . . . . Hacking Detections 7 | . 7 . . Full Trace Events 1 | . 1 . . Feedback Events . | . . . . Feedback Blocked . | . . . . Robot Schematics Acquired . | . . . . Robots Built . | . . . . Authchips . | . . . . Time . | . . . . Total Robot Build Rating . | . . . . Part Schematics Acquired . | . . . . Parts Built . | . . . . Authchips . | . . . . Time . | . . . . Total Part Build Rating . | . . . . Parts Repaired 2 | . 2 . . Time 52 | . 52 . . Parts Recycled . | . . . . Recycled Matter . | . . . . Retrieved Matter . | . . . . Retrieved Components . | . . . . Parts Scanalyzed . | . . . . Part Schematics Acquired . | . . . . Parts Damaged . | . . . . Bothacking | -11 -10 -10 -10 ------------ Run | Scr Mat Min Exi Used RIF Installer . | . . . . Robots Hacked . | . . . . Non-combat . | . . . . Combat . | . . . . Robot Hacks Applied . | . . . . Relay Couplers Released . | . . . . Fabnet Peak Effective % . | . . . . Robots Rewired . | . . . . Allies Hacked . | . . . . Hacks Repelled . | . . . . Allies | -11 -10 -10 -10 -------- Run | Scr Mat Min Exi Total Allies 1 | . 1 . . Largest Group 1 | . 1 1 1 Highest-Rated Group 10 | . 10 10 9 Highest-Rated Ally 10 | . 10 10 9 Total Orders 8 | . 2 6 . STAY 4 | . 1 3 . FOLLOW 4 | . 1 3 . Ally Attacks . | . . . . Total Damage . | . . . . Kills . | . . . . Allies Corrupted . | . . . . Allies Melted . | . . . . Intel | -11 -10 -10 -10 ------- Run | Scr Mat Min Exi Robot Analysis Total . | . . . . Derelict Logs Recovered 1 | . . 1 . Drone Launches . | . . . . Drone Recoveries . | . . . . Exploration | -11 -10 -10 -10 ------------- Run | Scr Mat Min Exi Turns Passed 7677 | . 1748 5755 174 Spaces Moved 2256 | 1 971 1179 105 Core . | . . . . Treads 1980 | . 696 1179 105 Legs 276 | 1 275 . . Wheels . | . . . . Hover . | . . . . Flight . | . . . . Fastest Speed 120 | 120 120 157 157 Average Speed 153 | 120 148 157 157 Slowest Speed 240 | 120 190 165 240 Overloaded Moves . | . . . . Propulsion Burnouts . | . . . . Robots Hopped . | . . . . Cave-ins Triggered . | . . . . Exploration Rate (%) 60 | 2 95 99 46 Regions Visited 3 Branch Regions 2 Pre-discovered Areas . | . . . . Known Exits Taken 1 | . 1 . . Unknown Exits Taken 2 | 1 . 1 . Scrap Searched 2 | . . 2 . Spaces Dug . | . . . . Terrain Destroyed 20 | . 3 . 17 Melee . | . . . . Projectile . | . . . . AOE 20 | . 3 . 17 Terrain Rammed . | . . . . Walls Destroyed . | . . . . Machines Disabled . | . . . . Actions | -11 -10 -10 -10 --------- Run | Scr Mat Min Exi Total 6314 | . 1168 5036 110 Wait 3877 | . 89 3788 . Move 2253 | . 970 1178 105 Hop . | . . . . Pick Up 30 | . 16 14 . Fast Attach 13 | . 10 3 . Attach 6 | . . 4 2 Detach 3 | . 2 1 . Swap 16 | . 11 5 . Drop 35 | . 16 19 . Fire 81 | . 54 24 3 Melee . | . . . . Ram . | . . . . Kick . | . . . . Crush . | . . . . Escape Stasis . | . . . . Rewire . | . . . . Trap . | . . . . Miscellaneous . | . . . . Route ------- -11/Scrapyard -10/Materials (discovered 4 exits: [*Mat x3] / *Min) -10/Mines (discovered 3 exits: [*Mat x2] / [*Exi]) -10/Exiles (discovered 1 exit: [*Min]) History --------- Turn | Location | Event 1 | -11/Scrapyard | Discovered new exit (range 0) 1 | -11/Scrapyard | Entered Materials 283 | -10/Materials | Discovered new exit (range 8) 313 | -10/Materials | Build established: Mutant 778 | -10/Materials | Discovered new exit (range 16) 902 | -10/Materials | Discovered new exit (range 13) 978 | -10/Materials | Repaired Assault Rifle? 1031 | -10/Materials | Repaired Assault Rifle? 1382 | -10/Materials | Discovered new exit (range 14) 1719 | -10/Materials | Identified exit to Mines 1749 | -10/Materials | Entered Mines 1749 | -10/Mines | Accompanied by 1 ally 1809 | -10/Mines | Discovered new exit (range 14) 1813 | -10/Mines | Joined a pair of Derelicts in attacking an 0b10 outpost 2093 | -10/Mines | Met a Derelict who couldn't figure out how to use a Trap Extractor 2174 | -10/Mines | Discovered new exit (range 15) 2204 | -10/Mines | Assembled infested the area 2275 | -10/Mines | Learned location of 1 exit from Materials 6896 | -10/Mines | Deemed a non-threat by the Exiles lab entrance 6896 | -10/Mines | Discovered new exit (range 5) 7504 | -10/Mines | Entered Exiles 7504 | -10/Exiles | Accompanied by 1 ally 7530 | -10/Exiles | Discovered new exit (range 15) 7555 | -10/Exiles | Met 8R-AWN 7581 | -10/Exiles | Met EX-HEX 7640 | -10/Exiles | Met EX-BIN 7657 | -10/Exiles | Met EX-DEC 7667 | -10/Exiles | Attacked by the Exiles 7670 | -10/Exiles | Core integrity fell below 50% 7678 | -10/Exiles | Destroyed by DAS Turret with DAS Cannon Last Messages --------------- for a sweet deal? EX-DEC: Ah I see we have a visitor. One wrong move in here and I'll invert your atomic chain! 07659_ EX-DEC: "Oops, I hope HEX didn't hear that..." 07667_ System corrupted: FCS attempts to trigger Grenade Launcher. 07667_ System corrupted: Grenade Launcher misfires. 07667_ EXILES: Hostile robot within lab perimeter. Defensive protocols time, folks! 07667_ Machine disabled. 07669_ EX-DEC: "Let's see what this bad boy can do..." 07669_ EX-DEC deploys DAS Turret. 07672_ Adv. Treads destroyed. 07672_ Arm. Treads blasted off. 07672_ Knocked back. 07673_ Acquired 6 matter. 07674_ Grenade Launcher destroyed. 07676_ Machine disabled. 07676_ Technician 1a suffers critical hit (Blast). 07676_ Technician 1a destroyed. 07678_ Machine disabled. Map ----- +----------------------------------------------------+ | ???????????????????????????????????????# ? | | ???????????????????????????????????????#" ?? | | ???????????????????????????????????????#" ??? | | ???????????????????????????????????????#" ???? | | ?????????????????????????" ???????????##" #???? | | ?????????????????????????# ?????????##"" #???? | | ???????????????????????### ##??######"" #???? | | ????????????????????####X# #"###""""""" ##??? | | ??????????????????? """""" " "" ##?? | | ?????????????????? "" """ " ### | | ????????????????? " " | | ???????????????? | | ???????????????? | | ???????????????? | | ????????????????? c | | ?????????????????#" | | ???????????????###""" """""" | | ?????????????### " ######""" | | ?????????????# %%""##????#####""" | | ?????????????# """##?????????##""" | | ?????????????# """##???????????#""" | | ?????????????## "#????????????#"" | | ?????????????# t ###???????????"""" | | ?????????????# % ##aaa##????" | | ?????????????# " % "??? | | ???????????????##" @ ?? | | ????????????????#""" a a ?? | | ????????????????## ?? | | ?????????????????#" % " ?? "" | | ?????????????????#"""" ""##?????"" " | | ?????????????????#"" ""###???????##" | | ?????????????????#" """"##???????????? | | ?????????????????#""" """#????????????? | | ?????????????????## c ""#?????????????? | | ??????????????????#"" """#??????????????? | | ??????????????????##""" ##??????????????? | | ???????????????????##" "" ##???????????????? | | ?????????????????????## #????????????????? | | ??????????????????????##### ##????????????????? | | ???????????????????????????# #?????????????????? | | ???????????????????????????? ??????????????????? | | ???????????????????????????? ????????????????????? | | ?????????????????????????????????????????????????? | | ?????????????????????????????????????????????????? | | ?????????????????????????????????????????????????? | | ?????????????????????????????????????????????????? | | ?????????????????????????????????????????????????? | | ?????????????????????????????????????????????????? | | ?????????????????????????????????????????????????? | | ?????????????????????????????????????????????????? | +----------------------------------------------------+ Best States ------------- Heat Dissipation 25 Energy Generation 14 Energy Capacity 275 Matter Stores 300 Matter Capacity 300 Sight Range 16 Terrain Scan Density 10 Armor Coverage 150 Core Shielding 20 Evasion (%) 55 Recoil Reduction 2 Trap Extractor Capacity 6 Item Schematics ----------------- None Robot Schematics ------------------ None Fabricated ------------ Nothing Alien Tech Used ----------------- None Achievements -------------- None Challenges ------------ None Game ------ Seed ChainLightKinecellerator Manual? 0 Play Time 00:51:44 Cumulative 97.5 hours Start 2022.05.29 @ 01:36:09 End 2022.05.30 @ 23:40:46 Sessions 3 Manual Loads 0 Difficulty Rogue Special Mode None Game No. 66 Rogue 64 Adventurer 0 Explorer 2 Win Type - Total 0 Types 0/0/0/0/0/0/0/0/0 Lore% 26 Gallery% 35 Achievement% 30 Wizard Run 0 Options --------- ASCII 0 Keyboard 0 Movement Numpad Keybinds 0 Fullscreen 1 Font 18/SmallcapsGlow Map View 76x50 Tactical HUD 1 Map Filters NONE Filters NONE Steam 1 RUN: 9764e9f0-e8a2-408b-bf63-3ec8e52abfcd